fUSD/lending_fUSD_20250208
["ID","MTS","AMOUNT","RATE_DAILY","PERIOD"]
[352294695,1739030729455,-500.0,0.00010545,2]
[352294696,1739030729510,-500.0,0.00010545,2]
[352294697,1739030729562,-500.0,0.00010545,2]
[352294698,1739030729617,-2414.31,0.00010545,2]
[352294699,1739030729671,-1611.04,0.00010545,2]
[352294700,1739030729726,-709.67,0.00010545,2]
[352294701,1739030729777,-878.56,0.00010545,2]
[352294702,1739030729830,-500.0,0.00010545,2]
[352294703,1739030729879,-1000.0,0.00010545,2]
[352294704,1739030729935,-730.67,0.00010545,2]
[352294705,1739030729984,-500.0,0.00010545,2]
[352294706,1739030730035,-1689.57,0.00010545,2]
[352294707,1739030730082,-789.69,0.00010545,2]
[352294708,1739030730130,-1696.13,0.00010545,2]
[352294709,1739030730179,-854.58,0.00010545,2]
[352294710,1739030730227,-500.0,0.00010545,2]
[352294711,1739030730279,-1675.34,0.00010545,2]
[352294712,1739030730325,-500.0,0.00010545,2]
[352294713,1739030730375,-500.0,0.00010545,2]
[352294714,1739030730426,-500.0,0.00010545,2]
[352294715,1739030730478,-766.51,0.00010545,2]
[352294716,1739030730530,-6935.5,0.00010545,2]
[352294717,1739030730583,-710.54,0.00010545,2]
[352294718,1739030730639,-500.0,0.00010545,2]
[352294719,1739030730693,-625.94,0.00010545,2]
[352294720,1739030730749,-500.0,0.00010545,2]
[352294721,1739030730806,-500.0,0.00010545,2]
[352294722,1739030730860,-681.43,0.00010545,2]
[352294723,1739030730916,-500.0,0.00010545,2]
[352294724,1739030730975,-500.0,0.00010545,2]
[352294725,1739030731029,-500.0,0.00010545,2]
[352294726,1739030731085,-500.0,0.00010545,2]
[352294727,1739030731134,-500.0,0.00010545,2]
[352294728,1739030731184,-500.0,0.00010545,2]
[352294729,1739030731236,-500.0,0.00010545,2]
[352294730,1739030731290,-500.0,0.00010545,2]
[352294731,1739030731343,-500.0,0.00010545,2]
[352294732,1739030731395,-500.0,0.00010545,2]
[352294733,1739030731447,-851.04,0.00010545,2]
[352294734,1739030731499,-500.0,0.00010545,2]
[352294735,1739030731551,-500.0,0.00010545,2]
[352294736,1739030731600,-500.0,0.00010545,2]
[352294737,1739030731651,-500.0,0.00010545,2]
[352294738,1739030731701,-500.0,0.00010545,2]
[352294739,1739030731751,-175.73174169,0.00010559,2]
[352294740,1739030731800,-2671.0,0.00010572,2]
[352294741,1739030731847,-3179.0047,0.0001058,2]
[352294742,1739030731899,-163.67677193,0.00010582,2]
[352294743,1739030731949,-300.0,0.000106,3]
[352294744,1739030732001,-400.0,0.000106,3]
[352294745,1739030732050,-300.0,0.000106,3]
[352294746,1739030732101,-1000.0,0.00010616,2]
[352294747,1739030732153,-3179.0047,0.0001066,2]
[352294748,1739030732204,-175.73174169,0.00010673,2]
[352294749,1739030732252,-931.24,0.00010679,2]
[352294750,1739030732315,-500.0,0.0001068,2]
[352294751,1739030732365,-624.73,0.0001068,2]
[352294752,1739030732597,-659.89,0.0001068,2]
[352294753,1739030732652,-755.96,0.0001068,2]
[352294754,1739030732702,-627.47,0.0001068,2]
[352294755,1739030732759,-500.0,0.0001068,2]
[352294756,1739030732810,-500.0,0.0001068,2]
[352294757,1739030732867,-500.0,0.0001068,2]
[352294758,1739030732920,-500.0,0.0001068,2]
[352294759,1739030732973,-734.76,0.0001068,2]
[352294760,1739030733026,-857.9,0.0001068,2]
[352294761,1739030733083,-500.0,0.0001068,2]
[352294762,1739030733137,-1772.68,0.0001068,2]
[352294763,1739030733198,-681.34,0.0001068,2]
[352294764,1739030733258,-500.0,0.0001068,2]
[352294765,1739030733323,-904.38,0.0001068,2]
[352294766,1739030733381,-819.41,0.0001068,2]
[352294767,1739030733440,-500.0,0.0001068,2]
[352294768,1739030733498,-1325.38,0.0001068,2]
[352294769,1739030733560,-1619.57,0.0001068,2]
[352294770,1739030733619,-500.0,0.0001068,2]
[352294771,1739030733682,-648.38,0.0001068,2]
[352294772,1739030733741,-500.0,0.0001068,2]
[352294773,1739030733806,-1309.61,0.0001068,2]
[352294774,1739030733861,-500.0,0.0001068,2]
[352294775,1739030733921,-500.0,0.0001068,2]
[352294776,1739030733979,-639.45,0.0001068,2]
[352294777,1739030734036,-1185.74,0.0001068,2]
[352294778,1739030734089,-500.0,0.0001068,2]
[352294779,1739030734147,-500.0,0.0001068,2]
[352294780,1739030734203,-1005.68,0.0001068,2]
[352294781,1739030734262,-586.78,0.0001068,2]
[352294782,1739030734321,-771.4,0.0001068,2]
[352294783,1739030734379,-500.0,0.0001068,2]
[352294784,1739030734435,-1328.4,0.0001068,2]
[352294785,1739030734492,-500.0,0.0001068,2]
[352294786,1739030734548,-1806.34,0.0001068,2]
[352294787,1739030734608,-728.81,0.0001068,2]
[352294788,1739030734663,-1714.33,0.0001068,2]
[352294789,1739030734718,-500.0,0.0001068,2]
[352294790,1739030734771,-500.0,0.0001068,2]
[352294791,1739030734829,-500.0,0.0001068,2]
[352294792,1739030734883,-841.77,0.0001068,2]
[352294793,1739030734939,-500.0,0.0001068,2]
[352294794,1739030734990,-752.57,0.0001068,2]
[352294795,1739030735046,-767.89,0.0001068,2]
[352294796,1739030735101,-500.0,0.0001068,2]
[352294797,1739030735156,-500.0,0.0001068,2]
[352294798,1739030735208,-568.28,0.0001068,2]
[352294799,1739030735267,-2042.07,0.0001068,2]
[352294800,1739030735324,-731.33,0.0001068,2]
[352294801,1739030735377,-500.0,0.0001068,2]
[352294802,1739030735430,-537.34,0.0001068,2]
[352294803,1739030735488,-500.0,0.0001068,2]
[352294804,1739030735543,-846.48,0.0001068,2]
[352294805,1739030735598,-820.2,0.0001068,2]
[352294806,1739030735656,-500.0,0.0001068,2]
[352294807,1739030735710,-643.96,0.0001068,2]
[352294808,1739030735764,-500.0,0.0001068,2]
[352294809,1739030735815,-500.0,0.0001068,2]
[352294810,1739030735874,-1468.75,0.0001068,2]
[352294811,1739030735935,-699.98,0.0001068,2]
[352294812,1739030735991,-500.0,0.0001068,2]
[352294813,1739030736046,-500.0,0.0001068,2]
[352294814,1739030736100,-514.05151471,0.0001068,2]
[352294815,1739030736152,-500.0,0.0001068,2]
[352294816,1739030736209,-846.94,0.0001068,2]
[352294817,1739030736277,-500.0,0.0001068,2]
[352294818,1739030736333,-1687.88,0.0001068,2]
[352294819,1739030736388,-1944.52,0.0001068,2]
[352294820,1739030736442,-1396.003847,0.0001068,2]
[352294821,1739030736500,-867.92,0.0001068,2]
[352294822,1739030736574,-692.89,0.0001068,2]
[352294823,1739030736634,-1709.578401,0.0001068,2]
[352294824,1739030736694,-500.0,0.0001068,2]
[352294825,1739030736754,-1366.87,0.0001068,2]
[352294826,1739030736825,-500.0,0.0001068,2]
[352294827,1739030736884,-500.0,0.0001068,2]
[352294828,1739030736946,-500.0,0.0001068,2]
[352294829,1739030737003,-500.0,0.0001068,2]
[352294830,1739030737066,-793.08,0.0001068,2]
[352294831,1739030737136,-500.0,0.0001068,2]
[352294832,1739030737209,-525.62,0.0001068,2]
[352294833,1739030737278,-179.13849123,0.0001068,2]
[352294834,1739030737334,-500.0,0.0001068,2]
[352294835,1739030737388,-854.33,0.0001068,2]
[352294836,1739030737445,-1083.22,0.0001068,2]
[352294837,1739030737515,-917.36,0.0001068,2]
[352294838,1739030737570,-883.82,0.0001068,2]
[352294839,1739030737623,-500.0,0.0001068,2]
[352294840,1739030737679,-782.16,0.0001068,2]
[352294841,1739030737730,-500.0,0.0001068,2]
[352294842,1739030737785,-500.0,0.0001068,2]
[352294843,1739030737836,-747.24,0.0001068,2]
[352294844,1739030737892,-674.19,0.0001068,2]
[352294845,1739030737943,-741.83,0.0001068,2]
[352294846,1739030737996,-500.0,0.0001068,2]
[352294847,1739030738049,-1399.18,0.0001068,2]
[352294848,1739030738103,-1111.43,0.0001068,2]
[352294849,1739030738155,-443.86724384,0.0001068,2]
[352294850,1739030738209,-500.0,0.0001068,2]
[352294851,1739030738264,-541.67,0.0001068,2]
[352294852,1739030738322,-500.0,0.0001068,2]
[352294853,1739030738375,-725.89,0.0001068,2]
[352294854,1739030738429,-500.0,0.0001068,2]
[352294855,1739030738487,-940.22,0.00010681,2]
[352294856,1739030738543,-4259.06,0.00010681,2]
[352294857,1739030738603,-1683.47,0.00010681,2]
[352294858,1739030738656,-1458.26,0.00010681,2]
[352294859,1739030738715,-1970.13,0.00010681,2]
[352294860,1739030738772,-1067.67,0.00010681,2]
[352294861,1739030738832,-2722.91,0.00010681,2]
[352294862,1739030738890,-1819.22,0.00010681,2]
[352294863,1739030738949,-500.0,0.00010681,2]
[352294864,1739030739003,-616.17,0.00010681,2]
[352294865,1739030739060,-1867.62,0.00010681,2]
[352294866,1739030739115,-1550.42,0.00010681,2]
[352294867,1739030739172,-1243.7,0.00010681,2]
[352294868,1739030739230,-1725.38,0.00010681,2]
[352294869,1739030739288,-1462.59,0.00010681,2]
[352294870,1739030739345,-500.0,0.00010681,2]
[352294871,1739030739403,-500.0,0.00010681,2]
[352294872,1739030739460,-1712.74,0.00010681,2]
[352294873,1739030739516,-928.74,0.00010681,2]
[352294874,1739030739572,-953.74,0.00010681,2]
[352294875,1739030739628,-1838.29,0.00010681,2]
[352294876,1739030739687,-948.04,0.00010681,2]
[352294877,1739030739745,-1023.28,0.00010681,2]
[352294878,1739030739801,-863.45,0.00010681,2]
[352294879,1739030739856,-780.01,0.00010681,2]
[352294880,1739030739911,-1101.29,0.00010681,2]
[352294881,1739030739970,-500.0,0.00010681,2]
[352294882,1739030740024,-694.19,0.00010681,2]
[352294883,1739030740080,-1032.58,0.00010681,2]
[352294884,1739030740132,-1152.23,0.00010681,2]
[352294885,1739030740188,-1881.58,0.00010681,2]
[352294886,1739030740243,-1070.13,0.00010681,2]
[352294887,1739030740301,-868.23,0.00010681,2]
[352294888,1739030740355,-1209.95,0.00010681,2]
[352294889,1739030740409,-500.0,0.00010681,2]
[352294890,1739030740464,-1059.32,0.00010681,2]
[352294891,1739030740526,-2263.5,0.00010681,2]
[352294892,1739030740582,-610.05,0.00010681,2]
[352294893,1739030740638,-564.11,0.00010681,2]
[352294894,1739030740697,-1327.45,0.00010681,2]
[352294895,1739030740754,-1253.82,0.00010681,2]
[352294896,1739030740817,-1787.14,0.00010681,2]
[352294897,1739030740876,-2120.14,0.00010681,2]
[352294898,1739030740934,-842.51,0.00010682,2]
[352294899,1739030740991,-500.0,0.00010682,2]
[352294900,1739030741051,-500.0,0.00010682,2]
[352294901,1739030741332,-500.0,0.00010682,2]
[352294902,1739030741390,-500.0,0.00010682,2]
[352294903,1739030741450,-500.0,0.00010682,2]
[352294904,1739030741509,-500.0,0.00010682,2]
[352294905,1739030741577,-500.0,0.00010682,2]
[352294906,1739030741635,-838.57,0.00010682,2]
[352294907,1739030741692,-562.8,0.00010682,2]
[352294908,1739030741750,-206.11025768,0.00010682,2]
[352294909,1739030741810,-500.0,0.00010682,2]
[352294910,1739030741868,-500.0,0.00010682,2]
[352294911,1739030741922,-583.94,0.00010682,2]
[352294912,1739030741978,-722.86,0.00010682,2]
[352294913,1739030742032,-686.51,0.00010682,2]
[352294914,1739030742088,-500.0,0.00010682,2]
[352294915,1739030742141,-500.0,0.00010682,2]
[352294916,1739030742194,-509.52,0.00010682,2]
[352294917,1739030742248,-500.0,0.00010682,2]
[352294918,1739030742302,-500.0,0.00010682,2]
[352294919,1739030742357,-692.06,0.00010682,2]
[352294920,1739030742408,-500.0,0.00010682,2]
[352294921,1739030742463,-541.71,0.00010682,2]
[352294922,1739030742517,-500.0,0.00010682,2]
[352294923,1739030742571,-746.36,0.00010682,2]
[352294924,1739030742624,-599.48,0.00010682,2]
[352294925,1739030742678,-500.0,0.00010682,2]
[352294926,1739030742730,-753.64,0.00010682,2]
[352294927,1739030742784,-500.0,0.00010682,2]
[352294928,1739030742839,-692.88,0.00010682,2]
[352294929,1739030742890,-694.63,0.00010682,2]
[352294930,1739030742944,-563.79,0.00010682,2]
[352294931,1739030742994,-500.0,0.00010682,2]
[352294932,1739030743047,-500.0,0.00010682,2]
[352294933,1739030743100,-500.0,0.00010682,2]
[352294934,1739030743157,-500.0,0.00010682,2]
[352294935,1739030743213,-1096.01,0.00010682,2]
[352294936,1739030743271,-500.0,0.00010682,2]
[352294937,1739030743329,-500.0,0.00010682,2]
[352294938,1739030743385,-500.0,0.00010682,2]
[352294939,1739030743441,-500.0,0.00010682,2]
[352294940,1739030743496,-500.0,0.00010682,2]
[352294941,1739030743553,-1040.0,0.00010682,2]
[352294942,1739030743607,-295.94992146,0.00010682,2]
[352294943,1739030743662,-804.63,0.00010682,2]
[352294944,1739030743716,-828.55,0.00010682,2]
[352294945,1739030743771,-500.0,0.00010682,2]
[352294946,1739030743824,-500.0,0.00010682,2]
[352294947,1739030743876,-500.0,0.00010682,2]
[352294948,1739030743929,-500.0,0.00010682,2]
[352294949,1739030743980,-500.0,0.00010682,2]
[352294950,1739030744035,-500.0,0.00010682,2]
[352294951,1739030744086,-500.0,0.00010682,2]
[352294952,1739030744141,-500.0,0.00010682,2]
[352294953,1739030744195,-778.32,0.00010682,2]
[352294954,1739030744250,-500.0,0.00010682,2]
[352294955,1739030744303,-500.0,0.00010682,2]
[352294956,1739030744359,-500.0,0.00010682,2]
[352294957,1739030744412,-847.29,0.00010682,2]
[352294958,1739030744469,-500.0,0.00010682,2]
[352294959,1739030744524,-500.0,0.00010682,2]
[352294960,1739030744580,-500.0,0.00010682,2]
[352294961,1739030744640,-768.92,0.00010682,2]
[352294962,1739030744696,-556.69,0.00010682,2]
[352294963,1739030744755,-5847.25,0.00010682,2]
[352294964,1739030744813,-588.19,0.00010682,2]
[352294965,1739030744873,-795.93,0.00010682,2]
[352294966,1739030744928,-1153.61,0.00010682,2]
[352294967,1739030744984,-1203.38,0.00010682,2]
[352294968,1739030745039,-526.0,0.00010682,2]
[352294969,1739030745094,-1061.72,0.00010682,2]
[352294970,1739030745146,-500.0,0.00010682,2]
[352294971,1739030745202,-500.0,0.00010682,2]
[352294972,1739030745252,-500.0,0.00010682,2]
[352294973,1739030745308,-500.0,0.00010682,2]
[352294974,1739030745364,-500.0,0.00010682,2]
[352294975,1739030745416,-895.87,0.00010682,2]
[352294976,1739030745471,-503.13,0.00010682,2]
[352294977,1739030745526,-500.0,0.00010682,2]
[352294978,1739030745581,-500.0,0.00010682,2]
[352294979,1739030745633,-500.0,0.00010682,2]
[352294980,1739030745688,-788.36,0.00010682,2]
[352294981,1739030745740,-500.0,0.00010682,2]
[352294982,1739030745795,-500.0,0.00010682,2]
[352294983,1739030745847,-2386.43,0.00010682,2]
[352294984,1739030745902,-1921.1,0.00010682,2]
[352294985,1739030745953,-500.0,0.00010682,2]
[352294986,1739030746006,-500.0,0.00010682,2]
[352294987,1739030746057,-500.0,0.00010682,2]
[352294988,1739030746109,-500.0,0.00010682,2]
[352294989,1739030746160,-665.38,0.00010682,2]
[352294990,1739030746211,-1335.82,0.00010682,2]
[352294991,1739030746262,-500.0,0.00010682,2]
[352294992,1739030746319,-914.9,0.00010682,2]
[352294993,1739030746368,-500.0,0.00010682,2]
[352294994,1739030746418,-500.0,0.00010682,2]
[352294995,1739030746470,-500.0,0.00010682,2]
[352294996,1739030746521,-2414.31,0.00010682,2]
[352294997,1739030746579,-1611.04,0.00010682,2]
[352294998,1739030746630,-709.67,0.00010682,2]
[352294999,1739030746685,-878.56,0.00010682,2]
[352295000,1739030746737,-500.0,0.00010682,2]
[352295001,1739030746792,-1000.0,0.00010682,2]
[352295002,1739030746843,-730.67,0.00010682,2]
[352295003,1739030746897,-589.41,0.00010682,2]
[352295004,1739030746951,-1689.57,0.00010682,2]
[352295005,1739030747007,-789.69,0.00010682,2]
[352295006,1739030747060,-1696.13,0.00010682,2]
[352295007,1739030747112,-854.58,0.00010682,2]
[352295008,1739030747166,-500.0,0.00010682,2]
[352295009,1739030747222,-1675.34,0.00010682,2]
[352295010,1739030747272,-500.0,0.00010682,2]
[352295011,1739030747327,-500.0,0.00010682,2]
[352295012,1739030747377,-500.0,0.00010682,2]
[352295013,1739030747429,-766.51,0.00010682,2]
[352295014,1739030747479,-6935.5,0.00010682,2]
[352295015,1739030747533,-710.54,0.00010682,2]
[352295016,1739030747582,-500.0,0.00010682,2]
[352295017,1739030747633,-625.94,0.00010682,2]
[352295018,1739030747681,-500.0,0.00010682,2]
[352295019,1739030747733,-500.0,0.00010682,2]
[352295020,1739030747784,-681.43,0.00010682,2]
[352295021,1739030747836,-500.0,0.00010682,2]
[352295022,1739030747887,-500.0,0.00010682,2]
[352295023,1739030747938,-500.0,0.00010682,2]
[352295024,1739030747992,-500.0,0.00010682,2]
[352295025,1739030748044,-500.0,0.00010682,2]
[352295026,1739030748099,-500.0,0.00010682,2]
[352295027,1739030748150,-500.0,0.00010682,2]
[352295028,1739030748208,-500.0,0.00010682,2]
[352295029,1739030748259,-851.04,0.00010682,2]
[352295030,1739030748317,-500.0,0.00010682,2]
[352295031,1739030748370,-500.0,0.00010682,2]
[352295032,1739030748425,-500.0,0.00010682,2]
[352295033,1739030748478,-500.0,0.00010682,2]
[352295034,1739030748533,-500.0,0.00010682,2]
[352295035,1739030748586,-3006.774929,0.000107,2]
[352295036,1739030748643,-300.0,0.000107,3]
[352295037,1739030748698,-400.0,0.000107,3]
[352295038,1739030748753,-300.0,0.000107,3]
[352295039,1739030748805,-206.0,0.00010712,2]
[352295040,1739030748860,-3179.0047,0.0001073,2]
[352295041,1739030748911,-517.0,0.0001074,2]
[352295042,1739030748964,-418.98433,0.00010771,2]
[352295043,1739030749014,-1017.97243575,0.00010779,3]
[352295044,1739030749066,-1017.97243575,0.00010779,3]
[352295045,1739030749117,-1674.51250758,0.0001078,2]
[352295046,1739030749169,-154.28063664,0.0001078,2]
[352295047,1739030749224,-175.73174169,0.00010786,2]
[352295048,1739030749278,-500.0,0.00010799,2]
[352295049,1739030749333,-300.0,0.000108,3]
[352295050,1739030749563,-400.0,0.000108,3]
[352295051,1739030749615,-80815.93782638,0.000108,2]
[352295052,1739030749671,-300.0,0.000108,3]
[352295053,1739030749725,-3179.0047,0.0001081,2]
[352295054,1739030749781,-931.24,0.00010816,2]
[352295055,1739030749831,-500.0,0.00010817,2]
[352295056,1739030749887,-624.73,0.00010817,2]
[352295057,1739030749936,-500.0,0.00010817,2]
[352295058,1739030749988,-659.89,0.00010817,2]
[352295059,1739030750038,-755.96,0.00010817,2]
[352295060,1739030750090,-627.47,0.00010817,2]
[352295061,1739030750140,-500.0,0.00010817,2]
[352295062,1739030750193,-500.0,0.00010817,2]
[352295063,1739030750244,-500.0,0.00010817,2]
[352295064,1739030750293,-500.0,0.00010817,2]
[352295065,1739030750345,-734.76,0.00010817,2]
[352295066,1739030750396,-857.9,0.00010817,2]
[352295067,1739030750448,-500.0,0.00010817,2]
[352295068,1739030750501,-1772.68,0.00010817,2]
[352295069,1739030750554,-681.34,0.00010817,2]
[352295070,1739030750603,-500.0,0.00010817,2]
[352295071,1739030750656,-904.38,0.00010817,2]
[352295072,1739030750709,-819.41,0.00010817,2]
[352295073,1739030750763,-500.0,0.00010817,2]
[352295074,1739030750815,-1325.38,0.00010817,2]
[352295075,1739030750867,-1619.57,0.00010817,2]
[352295076,1739030750916,-415.25,0.00010817,2]
[352295077,1739030750969,-648.38,0.00010817,2]
[352295078,1739030751021,-500.0,0.00010817,2]
[352295079,1739030751075,-1309.61,0.00010817,2]
[352295080,1739030751129,-500.0,0.00010817,2]
[352295081,1739030751186,-500.0,0.00010817,2]
[352295082,1739030751242,-639.45,0.00010817,2]
[352295083,1739030751298,-1185.74,0.00010817,2]
[352295084,1739030751358,-500.0,0.00010817,2]
[352295085,1739030751415,-500.0,0.00010817,2]
[352295086,1739030751473,-1005.68,0.00010817,2]
[352295087,1739030751533,-586.78,0.00010817,2]
[352295088,1739030751590,-771.4,0.00010817,2]
[352295089,1739030751648,-500.0,0.00010817,2]
[352295090,1739030751705,-1328.4,0.00010817,2]
[352295091,1739030751763,-156.59615399,0.00010817,2]
[352295092,1739030751823,-1806.34,0.00010817,2]
[352295093,1739030751879,-728.81,0.00010817,2]
[352295094,1739030751940,-1714.33,0.00010817,2]
[352295095,1739030751997,-500.0,0.00010817,2]
[352295096,1739030752057,-586.71439485,0.00010817,2]
[352295097,1739030752113,-500.0,0.00010817,2]
[352295098,1739030752172,-841.77,0.00010817,2]
[352295099,1739030752227,-752.57,0.00010817,2]
[352295100,1739030752287,-500.0,0.00010817,2]
[352295101,1739030752341,-767.89,0.00010817,2]
[352295102,1739030752398,-500.0,0.00010817,2]
[352295103,1739030752454,-500.0,0.00010817,2]
[352295104,1739030752509,-2042.07,0.00010817,2]
[352295105,1739030752566,-731.33,0.00010817,2]
[352295106,1739030752619,-500.0,0.00010817,2]
[352295107,1739030752672,-537.34,0.00010817,2]
[352295108,1739030752724,-345.56817834,0.00010817,2]
[352295109,1739030752780,-846.48,0.00010817,2]
[352295110,1739030752830,-820.2,0.00010817,2]
[352295111,1739030752884,-500.0,0.00010817,2]
[352295112,1739030752935,-643.96,0.00010817,2]
[352295113,1739030752989,-157.53,0.00010817,2]
[352295114,1739030753039,-500.0,0.00010817,2]
[352295115,1739030753096,-1468.75,0.00010817,2]
[352295116,1739030753156,-699.98,0.00010817,2]
[352295117,1739030753215,-500.0,0.00010817,2]
[352295118,1739030753270,-500.0,0.00010817,2]
[352295119,1739030753331,-500.0,0.00010817,2]
[352295120,1739030753386,-846.94,0.00010817,2]
[352295121,1739030753445,-1687.88,0.00010817,2]
[352295122,1739030753501,-1944.52,0.00010817,2]
[352295123,1739030753560,-1396.003847,0.00010817,2]
[352295124,1739030753616,-867.92,0.00010817,2]
[352295125,1739030753674,-692.89,0.00010817,2]
[352295126,1739030753732,-1709.578401,0.00010817,2]
[352295127,1739030753793,-500.0,0.00010817,2]
[352295128,1739030753851,-1366.87,0.00010817,2]
[352295129,1739030753908,-381.34,0.00010817,2]
[352295130,1739030753964,-500.0,0.00010817,2]
[352295131,1739030754015,-155.290179,0.00010817,2]
[352295132,1739030754073,-500.0,0.00010817,2]
[352295133,1739030754124,-500.0,0.00010817,2]
[352295134,1739030754181,-793.08,0.00010817,2]
[352295135,1739030754237,-500.0,0.00010817,2]
[352295136,1739030754292,-525.62,0.00010817,2]
[352295137,1739030754348,-500.0,0.00010817,2]
[352295138,1739030754404,-854.33,0.00010817,2]
[352295139,1739030754459,-1083.22,0.00010817,2]
[352295140,1739030754511,-917.36,0.00010817,2]
[352295141,1739030754571,-883.82,0.00010817,2]
[352295142,1739030754629,-500.0,0.00010817,2]
[352295143,1739030754682,-782.16,0.00010817,2]
[352295144,1739030754738,-500.0,0.00010817,2]
[352295145,1739030754792,-500.0,0.00010817,2]
[352295146,1739030754846,-747.24,0.00010817,2]
[352295147,1739030754900,-674.19,0.00010817,2]
[352295148,1739030754956,-741.83,0.00010817,2]
[352295149,1739030755013,-500.0,0.00010817,2]
[352295150,1739030755066,-1399.18,0.00010817,2]
[352295151,1739030755122,-1111.43,0.00010817,2]
[352295152,1739030755175,-500.0,0.00010817,2]
[352295153,1739030755228,-500.0,0.00010817,2]
[352295154,1739030755284,-725.89,0.00010817,2]
[352295155,1739030755338,-940.22,0.00010818,2]
[352295156,1739030755388,-4259.06,0.00010818,2]
[352295157,1739030755442,-1683.47,0.00010818,2]
[352295158,1739030755500,-1458.26,0.00010818,2]
[352295159,1739030755554,-1970.13,0.00010818,2]
[352295160,1739030755607,-1067.67,0.00010818,2]
[352295161,1739030755659,-2722.91,0.00010818,2]
[352295162,1739030755711,-1819.22,0.00010818,2]
[352295163,1739030755761,-500.0,0.00010818,2]
[352295164,1739030755814,-616.17,0.00010818,2]
[352295165,1739030755864,-1867.62,0.00010818,2]
[352295166,1739030755916,-1550.42,0.00010818,2]
[352295167,1739030755967,-1243.7,0.00010818,2]
[352295168,1739030756021,-1725.38,0.00010818,2]
[352295169,1739030756071,-1462.59,0.00010818,2]
[352295170,1739030756125,-500.0,0.00010818,2]
[352295171,1739030756175,-500.0,0.00010818,2]
[352295172,1739030756229,-1712.74,0.00010818,2]
[352295173,1739030756281,-928.74,0.00010818,2]
[352295174,1739030756337,-953.74,0.00010818,2]
[352295175,1739030756394,-1838.29,0.00010818,2]
[352295176,1739030756448,-948.04,0.00010818,2]
[352295177,1739030756497,-1023.28,0.00010818,2]
[352295178,1739030756549,-863.45,0.00010818,2]
[352295179,1739030756599,-780.01,0.00010818,2]
[352295180,1739030756652,-1101.29,0.00010818,2]
[352295181,1739030756704,-694.19,0.00010818,2]
[352295182,1739030756758,-1032.58,0.00010818,2]
[352295183,1739030756810,-1152.23,0.00010818,2]
[352295184,1739030756867,-1881.58,0.00010818,2]
[352295185,1739030756917,-1070.13,0.00010818,2]
[352295186,1739030756971,-868.23,0.00010818,2]
[352295187,1739030757024,-1209.95,0.00010818,2]
[352295188,1739030757076,-1059.32,0.00010818,2]
[352295189,1739030757126,-2263.5,0.00010818,2]
[352295190,1739030757177,-610.05,0.00010818,2]
[352295191,1739030757228,-564.11,0.00010818,2]
[352295192,1739030757279,-1327.45,0.00010818,2]
[352295193,1739030757335,-1253.82,0.00010818,2]
[352295194,1739030757385,-1787.14,0.00010818,2]